bitfinex-derivatives/quotes_ETHF0:USTF0_20230402
["timestamp","ask_amount","ask_price","bid_price","bid_amount"]
[1680468310119,1.17143447,1788.6,1788.5,1.0]
[1680468310320,1.17143447,1788.6,1788.5,18.46184151]
[1680468311122,1.17143447,1788.6,1788.5,17.46184151]
[1680468311324,1.17143447,1788.6,1788.5,14.25604151]
[1680468312621,4.37923447,1788.6,1788.5,14.25604151]
[1680468313525,5.50653125,1788.6,1788.5,13.41704151]
[1680468313826,4.73520169,1788.6,1788.5,13.41704151]
[1680468315529,6.19850299,1788.6,1788.5,13.41704151]
[1680468316126,5.36450299,1788.6,1788.5,13.41704151]
[1680468316833,4.6711013,1788.6,1788.5,13.41704151]
[1680468317226,3.2078,1788.6,1788.5,13.41704151]
[1680468318127,4.6711013,1788.6,1788.5,13.41704151]
[1680468318327,4.6711013,1788.6,1788.5,13.9490131]
[1680468319532,5.36447896,1788.6,1788.5,13.9490131]
[1680468319729,4.6711013,1788.6,1788.5,13.9490131]
[1680468320833,5.36447893,1788.6,1788.5,13.9490131]
[1680468322534,4.6711013,1788.6,1788.5,13.9490131]
[1680468322926,5.36447027,1788.6,1788.5,13.9490131]
[1680468330736,3.90116897,1788.6,1788.5,13.9490131]
[1680468332151,5.01416897,1788.6,1788.5,13.9490131]
[1680468334554,5.01416897,1788.6,1788.5,13.79492022]
[1680468334751,1.113,1788.5,1787.9,7.7849756]
[1680468334963,0.58608914,1788.0,1787.9,7.7849756]
[1680468335254,0.58608914,1788.0,1787.9,1.69152858]
[1680468336253,0.58608914,1788.1,1788.0,1.67721539]
[1680468336451,1.17217732,1788.2,1788.0,2.25684492]
[1680468337053,4.37997732,1788.2,1788.0,2.25684492]
[1680468337457,4.37997732,1788.2,1788.0,1.67721539]
[1680468342260,5.49797732,1788.2,1788.1,0.34279721]
[1680468352065,4.37997732,1788.2,1788.1,0.34279721]
[1680468352272,6.49697732,1788.2,1788.1,0.34279721]
[1680468352470,6.01833737,1788.2,1788.1,0.17926678]
[1680468355168,6.01833737,1788.2,1788.1,13.59942219]
[1680468355368,5.01833737,1788.2,1788.1,13.59942219]
[1680468355571,6.48259367,1788.2,1788.1,13.59942219]
[1680468356168,5.01833737,1788.2,1788.1,13.59942219]
[1680468357576,6.01833737,1788.2,1788.1,13.59942219]
[1680468357873,8.89879848,1788.2,1788.1,13.59942219]
[1680468359273,7.13633737,1788.2,1788.1,13.59942219]
[1680468360376,6.698,1788.1,1787.4,0.57962953]
[1680468360574,0.5855234,1787.5,1787.2,8.77232953]
[1680468360771,0.5855234,1787.5,1787.3,1.118]
[1680468361271,0.5855234,1787.5,1787.3,1.119]
[1680468362168,0.5855234,1787.5,1787.2,1.69862953]
[1680468362580,0.5855234,1787.5,1787.2,4.90642953]
[1680468362766,0.5855234,1787.6,1787.4,4.3268]
[1680468362964,0.5855234,1787.6,1787.5,1.118]
[1680468363371,0.5855234,1787.6,1787.3,2.69862953]
[1680468363571,0.5855234,1787.6,1787.3,1.69862953]
[1680468363771,0.10602946,1787.5,1787.3,1.69862953]
[1680468364276,0.5855234,1787.6,1787.3,1.69862953]
[1680468364474,0.10605435,1787.5,1787.3,1.119]
[1680468365173,0.5855234,1787.6,1787.2,2.69862953]
[1680468365375,0.10608073,1787.4,1787.2,2.69862953]
[1680468365577,3.2078,1787.5,1787.2,1.69862953]
[1680468365775,0.10609772,1787.4,1787.2,1.69862953]
[1680468366072,0.5855234,1787.6,1787.2,1.69862953]
[1680468366280,3.31391328,1787.5,1787.2,1.69862953]
[1680468366672,3.2078,1787.5,1787.2,1.69862953]
[1680468367271,0.10614675,1787.4,1787.3,1.119]
[1680468373074,3.7933234,1787.7,1787.3,1.119]
[1680468373274,0.10634983,1787.6,1787.3,1.119]
[1680468373582,3.7933234,1787.7,1787.3,1.119]
[1680468377282,4.6253234,1787.7,1787.3,0.839]
[1680468378380,0.10651691,1787.6,1787.3,0.839]
[1680468378576,4.6253234,1787.7,1787.3,0.839]
[1680468380383,0.5855234,1787.7,1787.5,0.839]
[1680468380577,0.5855234,1787.7,1787.6,13.42247156]
[1680468380775,1.14856709,1787.8,1787.6,13.42247156]
[1680468381584,4.35636709,1787.8,1787.6,13.42247156]
[1680468382184,4.35636709,1787.8,1787.7,13.42247156]
[1680468382584,3.7933234,1787.8,1787.7,13.42247156]
[1680468389194,4.6704268,1787.8,1787.7,13.42247156]
[1680468391289,4.0849034,1787.8,1787.7,13.42247156]
[1680468392382,4.0849034,1787.8,1787.6,13.42247156]
[1680468392593,4.0849034,1787.8,1787.7,13.42247156]
[1680468392896,4.0849034,1787.8,1787.6,13.42247156]
[1680468393093,4.0849034,1787.8,1787.7,13.42247156]
[1680468393388,4.19192581,1787.8,1787.7,13.42247156]
[1680468393588,4.0849034,1787.8,1787.6,13.42247156]
[1680468393791,4.0849034,1787.8,1787.7,13.42247156]
[1680468394291,4.0849034,1787.8,1787.6,13.42247156]
[1680468394497,4.0849034,1787.8,1787.7,13.42247156]
[1680468394890,4.0849034,1787.8,1787.6,13.42247156]
[1680468395091,4.0849034,1787.8,1787.7,13.42247156]
[1680468395291,4.0849034,1787.8,1787.6,13.42247156]
[1680468395491,4.0849034,1787.8,1787.7,13.42247156]
[1680468396190,0.8771034,1787.8,1787.7,13.42247156]
[1680468396393,0.8771034,1787.8,1787.6,13.42247156]
[1680468396588,0.8771034,1787.8,1787.7,13.48843182]
[1680468397291,1.17104679,1787.8,1787.7,13.48843182]
[1680468399099,4.37884679,1787.8,1787.7,13.48843182]
[1680468405509,4.73850964,1787.8,1787.7,13.48843182]
[1680468405700,6.57950964,1787.8,1787.7,13.48843182]
[1680468407108,5.57950964,1787.8,1787.7,13.48843182]
[1680468409117,4.74050964,1787.8,1787.7,13.48843182]
[1680468412116,4.73850964,1787.8,1787.7,13.48843182]
[1680468418027,5.57650964,1787.8,1787.7,13.48843182]
[1680468422233,5.57050964,1787.8,1787.7,13.48843182]
[1680468430746,5.57050964,1787.8,1787.7,13.48554271]
[1680468431734,4.73750964,1787.8,1787.7,13.48554271]
[1680468432241,3.90150964,1787.8,1787.7,13.48554271]
[1680468435837,5.36719466,1787.8,1787.7,13.48554271]
[1680468436139,3.90150964,1787.8,1787.7,13.48554271]
[1680468437339,5.3672864,1787.8,1787.7,13.48554271]
[1680468440842,3.90150964,1787.8,1787.7,13.48554271]
[1680468441245,5.36751248,1787.8,1787.7,13.48554271]
[1680468442445,3.90150964,1787.8,1787.7,13.48554271]
[1680468446147,10.12866898,1787.8,1787.7,5.03056969]
[1680468446344,5.198,1787.7,1787.1,5.95264702]
[1680468446646,5.21921662,1787.2,1787.0,0.43074076]
[1680468446943,1.17341662,1787.1,1787.0,0.43074076]
[1680468447146,5.21921662,1787.2,1786.8,0.87354702]
[1680468447345,4.08727312,1786.9,1786.8,1.0]
[1680468447946,4.08727312,1786.9,1786.6,2.71254702]
[1680468448149,0.58636272,1786.8,1786.6,1.71254702]
[1680468449141,1.46583584,1786.8,1786.6,1.71254702]
[1680468449541,0.58636272,1786.8,1786.6,1.71254702]
[1680468449742,3.79416272,1786.9,1786.6,0.839]
[1680468449947,1.46583584,1787.0,1786.7,0.836]
[1680468450153,0.58636272,1787.0,1786.7,0.836]
[1680468450445,0.58636272,1787.0,1786.7,1.836]
[1680468450638,3.79416272,1787.0,1786.7,1.836]
[1680468452052,0.58636272,1787.0,1786.7,1.0]
[1680468452240,3.79416272,1787.0,1786.7,2.119]
[1680468452444,0.58636272,1786.9,1786.7,1.119]
[1680468452844,4.67363584,1787.0,1786.7,1.119]
[1680468453137,0.58636272,1786.9,1786.7,1.119]
[1680468453452,3.2078,1786.8,1786.5,2.11]
[1680468454353,0.79027698,1786.9,1786.5,2.11]
[1680468454649,0.20391426,1786.9,1786.5,5.3178]
[1680468454948,0.20391426,1786.9,1786.5,2.11]
[1680468459150,0.20391426,1786.9,1786.5,5.3178]
[1680468462051,0.20391426,1786.9,1786.8,4.3268]
[1680468462252,0.58636272,1787.3,1786.8,4.3268]
[1680468462549,3.79416272,1787.3,1787.1,1.115]
[1680468462751,0.58636272,1787.3,1787.1,1.115]
[1680468463147,4.36592145,1787.3,1787.1,1.115]
[1680468463753,3.77955873,1787.3,1787.1,1.115]
[1680468463941,4.36592145,1787.3,1787.1,1.115]
[1680468464753,3.77955873,1787.3,1787.1,1.115]
[1680468465556,4.36592145,1787.3,1787.1,1.115]
[1680468468453,0.57175873,1787.3,1787.1,1.115]
[1680468468658,0.58636272,1787.4,1787.1,1.115]
[1680468469459,0.58636272,1787.3,1787.1,1.115]
[1680468470862,2.03563848,1787.4,1787.1,1.115]
[1680468471665,0.58636272,1787.3,1787.1,1.115]
[1680468474674,2.03563848,1787.4,1787.1,1.115]
[1680468475174,3.79416272,1787.3,1786.9,1.119]
[1680468475377,3.2078,1787.1,1786.9,1.119]
[1680468478675,3.20243857,1787.1,1786.9,1.119]
[1680468482184,3.20243857,1787.1,1786.8,1.119]
[1680468484988,1.69836272,1787.0,1786.6,1.119]
[1680468485290,3.79416272,1786.9,1786.6,1.119]
[1680468485480,1.86371634,1787.0,1786.6,1.119]
[1680468485677,5.07151634,1787.0,1786.6,2.119]
[1680468486189,5.07151634,1787.0,1786.6,1.119]
[1680468486585,0.58636272,1786.9,1786.6,1.119]
[1680468488389,3.2078,1786.8,1786.6,1.119]
[1680468488686,0.58636272,1786.9,1786.6,1.119]
[1680468489793,3.2078,1786.8,1786.6,1.119]
[1680468490590,3.79416272,1786.8,1786.6,1.99254702]
[1680468492696,3.79416272,1786.8,1786.6,1.119]
[1680468496296,3.79416272,1786.8,1786.6,1.99254702]
[1680468496496,3.79416272,1786.8,1786.6,1.119]
[1680468498499,0.21564542,1786.7,1786.6,1.119]
[1680468499796,0.21564542,1786.7,1786.6,1.99254702]
[1680468501798,0.21564542,1786.7,1786.6,1.119]
[1680468503402,0.21564542,1786.7,1786.6,1.99254702]
[1680468504297,0.21564542,1786.7,1786.6,1.119]
[1680468513702,0.80200814,1786.7,1786.6,1.119]
[1680468517107,0.80200814,1786.7,1786.6,0.836]
[1680468517301,0.80200814,1786.7,1786.6,1.836]
[1680468521914,1.68148126,1786.7,1786.6,2.70954702]
[1680468522107,1.68148126,1786.7,1786.6,2.71254702]
[1680468522306,1.68148126,1786.7,1786.6,1.71254702]
[1680468523712,1.09511854,1786.7,1786.6,1.71254702]
[1680468527807,1.09511854,1786.7,1786.6,2.71254702]
[1680468528314,1.09511854,1786.7,1786.6,1.839]
[1680468528905,0.21668455,1786.7,1786.6,16.43418635]
[1680468529208,0.58706187,1786.7,1786.6,16.43418635]
[1680468529410,1.17341662,1786.9,1786.7,1.0]
[1680468529607,1.17341662,1786.9,1786.8,0.831]
[1680468530905,1.17341662,1786.9,1786.8,1.70575687]
[1680468531112,1.17341662,1787.0,1786.8,1.70575687]
[1680468531317,1.17341662,1786.9,1786.7,5.92155687]
[1680468531510,1.17341662,1786.9,1786.8,1.71375687]
[1680468532212,1.17341662,1787.0,1786.9,1.0]
[1680468532413,1.17341662,1787.0,1786.9,1.833]
[1680468534208,1.17341662,1787.0,1786.9,5.8798]
[1680468534409,1.17341662,1787.1,1786.9,6.75455687]
[1680468534611,1.17341662,1787.1,1787.0,1.835]
[1680468538713,1.17341662,1787.1,1787.0,1.9151749]
[1680468544424,1.17341662,1787.2,1787.0,1.9151749]
[1680468544615,1.17341662,1787.2,1787.1,0.833]
[1680468545024,1.17341662,1787.2,1787.1,0.90601817]
[1680468549219,1.17341662,1787.2,1787.1,14.3319711]
[1680468571548,1.46677077,1787.3,1787.1,14.3319711]
[1680468571746,2.1606108,1787.3,1787.2,13.42595293]
[1680468572045,2.1606108,1787.3,1787.2,13.49806052]
[1680468573647,0.69384003,1787.3,1787.2,13.49806052]
[1680468576046,3.0237676,1787.4,1787.2,13.49806052]
[1680468576246,0.69384003,1787.3,1787.2,0.07210759]
[1680468576444,1.69384003,1787.3,1787.0,0.839]
[1680468576648,3.90164003,1787.2,1787.1,13.42650167]
[1680468576845,3.90164003,1787.2,1787.1,13.49844916]
[1680468580955,4.74064003,1787.2,1787.1,13.49844916]
[1680468595967,4.74064003,1787.2,1787.1,13.49388084]
[1680468601675,6.20757309,1787.2,1787.1,13.49388084]
[1680468601871,4.74064003,1787.2,1787.1,13.49388084]
[1680468602070,3.90164003,1787.2,1787.1,13.49388084]
[1680468610479,0.69384003,1787.2,1787.1,13.49388084]
[1680468610793,1.4670507,1787.2,1787.1,14.33088084]
[1680468610980,0.69384003,1787.2,1787.1,14.33088084]
[1680468620393,0.5464693,1787.3,1787.1,14.33088084]
[1680468620394,3.00043426,1787.3,1787.1,14.33088084]
[1680468620696,0.69384003,1787.2,1787.1,0.90894749]
[1680468621094,0.69384003,1787.3,1787.1,0.90894749]
[1680468621294,0.69384003,1787.2,1787.1,0.90894749]
[1680468622086,0.69384003,1787.2,1787.1,14.33028893]
[1680468622493,2.45396496,1787.3,1787.1,14.33028893]
[1680468622795,1.76012493,1787.3,1787.2,13.42634144]
[1680468623095,2.45399383,1787.3,1787.2,13.50015076]
[1680468625792,3.28599383,1787.3,1787.2,13.50015076]
[1680468625992,4.28599383,1787.3,1787.2,13.34594448]
[1680468626195,2.5258689,1787.3,1787.2,12.57666835]
[1680468626389,4.57934798,1787.3,1787.2,12.57666835]
[1680468626694,3.57934798,1787.3,1787.2,12.57666835]
[1680468627291,4.57934798,1787.3,1787.2,12.57666835]
[1680468627497,3.57934798,1787.3,1787.2,12.57666835]
[1680468630699,4.41834798,1787.3,1787.2,12.57666835]
[1680468636802,2.3648689,1787.3,1787.2,12.57666835]
[1680468642207,4.12537189,1787.3,1787.2,12.57666835]
[1680468643004,2.3648689,1787.3,1787.2,12.57666835]
[1680468643202,4.12535509,1787.3,1787.2,12.57666835]
[1680468647207,2.3648689,1787.3,1787.2,12.57666835]
[1680468648508,4.12527589,1787.3,1787.2,12.57666835]
[1680468656027,4.12527589,1787.3,1787.2,12.42246233]
[1680468658428,5.41834798,1787.3,1787.2,12.42246233]
[1680468658929,4.41834798,1787.3,1787.2,12.42246233]
[1680468659129,5.41834798,1787.3,1787.2,12.42246233]
[1680468659631,4.41834798,1787.3,1787.2,12.42246233]
[1680468670237,2.3648689,1787.3,1787.2,12.42246233]
[1680468670432,1.5258689,1787.3,1787.2,12.42246233]
[1680468670931,1.55034798,1787.3,1787.2,12.42246233]
[1680468671132,2.07241426,1787.4,1787.2,12.44311229]
[1680468671432,5.28021426,1787.4,1787.2,0.09445928]
[1680468671628,4.44221426,1787.4,1787.2,0.93345928]
[1680468672132,3.75381045,1787.4,1787.2,0.93345928]
[1680468674244,1.46658177,1787.3,1787.2,0.93345928]
[1680468674735,1.46659115,1787.3,1787.2,0.93345928]
[1680468676239,1.46659115,1787.3,1787.2,14.35945439]
[1680468678544,2.01192257,1787.4,1787.2,15.19845439]
[1680468678841,0.54601045,1787.4,1787.3,14.25707538]
[1680468679029,1.46591212,1787.5,1787.4,1.0]
[1680468679237,1.46591212,1787.5,1787.4,15.26407538]
[1680468680739,1.46591212,1787.5,1787.4,14.26407538]
[1680468682143,4.67371212,1787.6,1787.4,14.26407538]
[1680468682439,4.67371212,1787.6,1787.5,13.42507538]
[1680468683130,4.67371212,1787.6,1787.5,13.66281997]
[1680468686146,1.46591212,1787.7,1787.5,13.66281997]
[1680468686443,1.46591212,1787.7,1787.6,13.42507538]
[1680468690042,1.46591212,1787.7,1787.6,14.26307538]
[1680468690343,4.67371212,1787.8,1787.6,14.26307538]
[1680468690643,4.67371212,1787.8,1787.7,13.42507538]
[1680468691035,5.36743187,1787.8,1787.7,13.42507538]
[1680468691440,4.67371212,1787.8,1787.7,13.42507538]
[1680468693538,3.2078,1787.8,1787.7,13.42507538]
[1680468693740,4.67371212,1787.8,1787.7,13.42507538]
[1680468694042,3.2078,1787.8,1787.7,13.42507538]
[1680468698154,3.2078,1787.8,1787.6,0.838]
[1680468698449,0.87715816,1787.7,1787.6,0.838]
[1680468698643,0.87715816,1787.7,1787.6,14.26129524]
[1680468703749,4.67371212,1787.8,1787.6,14.26129524]
[1680468703952,4.67371212,1787.8,1787.6,0.838]
[1680468708860,1.16989952,1787.7,1787.6,0.838]
[1680468709967,1.16989952,1787.7,1787.6,14.26187959]
[1680468710165,1.16989952,1787.7,1787.6,13.42387959]
[1680468710365,5.50571212,1787.8,1787.5,13.42387959]
[1680468710554,1.46591212,1787.7,1787.6,13.42387959]
[1680468710754,3.2078,1787.7,1787.6,13.42387959]
[1680468711266,3.2078,1787.7,1787.5,13.42387959]
[1680468711470,3.2078,1787.7,1787.6,13.42387959]
[1680468711959,3.2078,1787.7,1787.5,13.42387959]
[1680468712166,4.67371212,1787.7,1787.6,13.42387959]
[1680468712468,5.36746555,1787.7,1787.5,13.42387959]
[1680468712661,5.36746555,1787.7,1787.6,13.42387959]
[1680468712662,4.67371212,1787.7,1787.6,13.42387959]
[1680468712969,5.36746593,1787.7,1787.6,13.42387959]
[1680468713267,5.36746593,1787.7,1787.6,0.23674017]
[1680468713569,5.36746593,1787.7,1787.6,13.66061976]
[1680468716066,3.90155381,1787.7,1787.6,13.66061976]
[1680468730091,5.6584356,1787.7,1787.6,13.66061976]
[1680468730485,2.4506356,1787.7,1787.6,14.49461976]
[1680468730783,0.69375381,1787.7,1787.6,14.49461976]
[1680468731485,2.4506356,1787.8,1787.6,14.49461976]
[1680468731787,0.69375381,1787.7,1787.6,1.07074017]
[1680468731994,0.69375381,1787.7,1787.6,14.49411]
[1680468732691,2.4506356,1787.8,1787.6,14.49411]
[1680468732890,0.69375381,1787.7,1787.6,1.07074017]
[1680468733181,0.69375381,1787.7,1787.6,14.49413954]
[1680468733587,2.4506356,1787.8,1787.6,14.49413954]
[1680468733885,0.69375381,1787.7,1787.6,1.07074017]
[1680468734083,0.69375381,1787.7,1787.6,14.49413259]
[1680468734288,2.4506356,1787.8,1787.6,14.49413259]
[1680468734487,0.69375381,1787.7,1787.6,1.07074017]
[1680468734689,2.4506356,1787.8,1787.6,14.49413435]
[1680468734889,2.4506356,1787.8,1787.7,13.42339418]
[1680468735284,2.4506356,1787.8,1787.7,13.65939774]
[1680468737795,0.69375381,1787.8,1787.7,14.49439774]
[1680468738493,2.16055316,1787.8,1787.7,14.49439774]
[1680468739193,2.16055316,1787.8,1787.7,15.32939774]
[1680468740302,1.46679935,1787.8,1787.7,15.32939774]
[1680468742302,1.17262661,1787.8,1787.7,15.32939774]
[1680468743389,1.17262661,1787.8,1787.7,15.44818299]
[1680468748205,1.17262661,1787.9,1787.7,15.44818299]
[1680468748404,1.17262661,1787.9,1787.8,18.46719418]
[1680468748901,1.17262661,1787.9,1787.8,15.25939418]
[1680468749107,2.02018998,1788.0,1787.8,15.25939418]
[1680468749407,2.02018998,1788.0,1787.9,14.26239418]
[1680468749610,2.7137815,1788.0,1787.9,14.26239418]
[1680468752202,2.02018998,1788.0,1787.9,14.26239418]
[1680468753313,2.02018998,1788.0,1787.9,14.25619897]
[1680468758414,2.02018998,1788.0,1787.9,14.61048872]
[1680468763318,0.55339063,1788.0,1787.9,14.61048872]
[1680468763614,1.46679935,1788.1,1787.9,14.61048872]
[1680468763813,1.46679935,1788.1,1787.9,1.19328975]
[1680468764217,1.46679935,1788.0,1787.9,1.19328975]
[1680468767315,1.46679935,1788.1,1787.9,1.19328975]
[1680468767516,1.46679935,1788.1,1788.0,0.831]
[1680468770713,0.69358308,1788.1,1788.0,0.831]
[1680468770918,1.46436759,1788.1,1788.0,0.831]
[1680468772222,0.69358308,1788.1,1788.0,0.831]
[1680468772617,0.69358308,1788.2,1788.0,0.831]
[1680468772919,0.69358308,1788.1,1788.0,0.831]
[1680468773115,0.69358308,1788.2,1788.0,0.831]
[1680468773318,0.69358308,1788.2,1788.1,13.42069076]
[1680468773616,0.69358308,1788.2,1788.1,13.62035338]
[1680468774719,4.28346487,1788.2,1788.1,13.62035338]
[1680468775022,4.28446487,1788.2,1788.1,13.62035338]
[1680468775217,2.52758308,1788.2,1788.1,12.66096223]
[1680468775416,4.57789439,1788.2,1788.1,0.35379089]
[1680468775722,1.0,1788.1,1787.6,0.834]
[1680468775918,1.17198587,1787.7,1787.6,0.834]
[1680468780522,1.46498233,1787.7,1787.6,0.834]
[1680468780920,1.46498233,1787.7,1787.4,1.42180352]
[1680468781127,0.8796897,1787.5,1787.4,1.42180352]
[1680468783317,0.8796897,1787.5,1787.4,1.46561634]
[1680468785829,0.8796897,1787.5,1787.4,2.34037321]
[1680468786130,0.8796897,1787.5,1787.4,1.46561634]
[1680468793837,0.8796897,1787.5,1787.4,2.46561634]
[1680468795236,0.8796897,1787.5,1787.4,15.88827384]
[1680468796043,0.58626966,1787.5,1787.4,15.88827384]
[1680468796625,0.58626966,1787.5,1787.4,16.76303071]
[1680468797028,0.58626966,1787.5,1787.4,15.88827384]
[1680468797825,0.58626966,1787.5,1787.4,16.01170088]
[1680468801633,0.58626966,1787.5,1787.4,16.88645775]
[1680468804446,0.58626966,1787.5,1787.4,16.30365423]
[1680468804941,0.58626966,1787.5,1787.4,2.88099673]
[1680468805144,0.58626966,1787.5,1787.4,29.72557251]
[1680468806740,0.8796897,1787.6,1787.5,2.9294685]
[1680468807043,0.8796897,1787.6,1787.5,17.93946474]
[1680468807243,0.8796897,1787.6,1787.5,21.14726474]
[1680468807741,0.8796897,1787.6,1787.5,20.14726474]
[1680468808947,0.8796897,1787.6,1787.5,19.05579624]
[1680468810737,0.8796897,1787.7,1787.5,19.93055311]
[1680468810945,0.8796897,1787.7,1787.6,15.2536575]
[1680468812138,0.8796897,1787.7,1787.6,15.84406445]
[1680468812540,0.8796897,1787.7,1787.6,14.84406445]
[1680468818347,1.1729196,1787.8,1787.6,14.24408914]
[1680468818556,2.15862231,1787.8,1787.7,13.4226575]
[1680468820456,5.36642231,1787.8,1787.7,13.4226575]
[1680468822257,6.19842231,1787.8,1787.7,13.4226575]
[1680468824456,6.75123171,1787.8,1787.7,13.4226575]
[1680468825767,5.28624938,1787.8,1787.7,13.4226575]
[1680468832161,5.29324938,1787.8,1787.7,13.4226575]
[1680468833062,4.45424938,1787.8,1787.7,13.4226575]
[1680468833356,4.45424938,1787.8,1787.7,13.66415042]
[1680468842171,5.28724938,1787.8,1787.7,13.66415042]
[1680468845467,2.07944938,1787.8,1787.7,13.66415042]
[1680468845672,5.28724938,1787.8,1787.7,13.66415042]
[1680468856185,7.12924938,1787.8,1787.7,13.66415042]
[1680468856383,9.55161163,1787.8,1787.7,13.26849482]
[1680468856591,9.55161163,1787.8,1787.2,0.58240695]
[1680468856786,0.87981641,1787.3,1787.2,1.45716382]
[1680468857299,0.87981641,1787.3,1787.2,0.58240695]
[1680468857896,0.87981641,1787.3,1787.2,1.58240695]
[1680468858697,0.87981641,1787.3,1787.2,2.45716382]
[1680468859305,0.87981641,1787.3,1787.2,0.58240695]
[1680468861798,0.87981641,1787.3,1787.2,1.58240695]
[1680468862000,0.87981641,1787.4,1787.2,3.29616382]
[1680468862200,0.87981641,1787.4,1787.3,0.58240695]
[1680468862399,0.87981641,1787.4,1787.3,1.58240695]
[1680468865502,1.17308855,1787.4,1787.2,2.42140695]
[1680468865701,0.87967251,1787.3,1787.2,3.29616382]
[1680468865894,0.87967251,1787.3,1787.2,3.29632705]
[1680468867700,1.17308855,1787.5,1787.2,3.29632705]
[1680468867701,0.87967251,1787.4,1787.2,3.29632705]
[1680468868202,0.87967251,1787.3,1787.2,2.71375687]
[1680468869497,0.87967251,1787.4,1787.2,2.71375687]
[1680468869794,0.87967251,1787.4,1787.3,0.58261996]
[1680468870200,1.17308855,1787.5,1787.3,0.58261996]
[1680468873197,0.87973479,1787.4,1787.3,0.58261996]
[1680468875405,0.87973479,1787.4,1787.3,1.58261996]
[1680468876601,0.87973479,1787.4,1787.3,15.00637594]
[1680468877005,0.87979073,1787.4,1787.3,15.00637594]
[1680468877507,1.17308855,1787.5,1787.3,15.00637594]
[1680468877696,1.17308855,1787.5,1787.4,13.42375598]
[1680468884418,1.46636069,1787.6,1787.4,13.42375598]
[1680468884618,2.16009653,1787.6,1787.4,13.42375598]
[1680468885017,1.17325519,1787.5,1787.4,13.42375598]
[1680468885817,1.17327841,1787.5,1787.4,13.42375598]
[1680468886615,1.46636069,1787.6,1787.4,13.42375598]
[1680468886815,2.16009631,1787.6,1787.4,13.42375598]
[1680468890317,1.17335262,1787.5,1787.4,13.42375598]
[1680468893518,1.46636069,1787.6,1787.4,13.42375598]
[1680468893723,2.16008946,1787.6,1787.4,13.42375598]
[1680468894621,2.16008946,1787.6,1787.5,1.833]
[1680468894825,1.17343833,1787.6,1787.5,16.18617303]
[1680468895021,1.17343833,1787.6,1787.5,19.39397303]
[1680468895218,1.17343833,1787.6,1787.5,19.97659299]
[1680468895419,1.17343833,1787.7,1787.6,0.79766158]
[1680468895620,1.17343833,1787.7,1787.6,15.63607007]
[1680468897832,1.17343833,1787.8,1787.6,15.05341756]
[1680468898028,1.17343833,1787.8,1787.7,16.63155598]
[1680468902029,1.17343833,1787.8,1787.7,17.47055598]
[1680468904028,1.46636069,1787.8,1787.7,14.26275598]
[1680468904234,1.69361456,1788.0,1787.7,14.26275598]
[1680468904235,4.67416069,1787.9,1787.7,14.26275598]
[1680468904428,4.67416069,1787.9,1787.8,13.42375598]
[1680468904626,5.36780966,1787.9,1787.8,13.42375598]
[1680468906224,5.36780966,1787.9,1787.8,13.6697472]
[1680468910335,1.46636069,1787.9,1787.8,13.6697472]
[1680468911842,1.46636069,1788.0,1787.8,13.6697472]
[1680468912037,1.46636069,1787.9,1787.8,0.24599122]
[1680468912238,1.46636069,1787.9,1787.8,13.66746449]
[1680468912741,1.17181184,1787.9,1787.8,13.66746449]
[1680468912942,1.17181184,1787.9,1787.8,17.70926449]
[1680468913940,1.17181184,1788.0,1787.8,13.66746449]
[1680468914242,1.46456686,1788.0,1787.9,13.42147327]
[1680468914449,2.15818359,1788.0,1787.9,13.42147327]
[1680468914650,1.17160042,1788.0,1787.9,13.6313936]
[1680468915058,1.17160042,1788.0,1787.9,14.4703936]
[1680468915348,1.17160042,1788.1,1787.9,14.4703936]
[1680468915550,1.17160042,1788.1,1788.0,13.42147327]
[1680468920052,6.92854731,1788.3,1788.1,1.0]
[1680468920053,1.17160042,1788.2,1788.1,1.0]
[1680468920251,1.17160042,1788.2,1788.1,14.42147327]
[1680468920652,1.17160042,1788.2,1788.1,13.42147327]
[1680468923259,1.72567294,1788.3,1788.1,13.42147327]
[1680468924059,1.17160042,1788.2,1788.1,13.42147327]
[1680468924560,1.72567294,1788.3,1788.1,13.42147327]
[1680468924855,1.17160042,1788.3,1788.1,13.42147327]
[1680468926861,0.58492108,1788.2,1788.1,13.42147327]
[1680468927562,0.58492108,1788.2,1788.1,13.63096025]
[1680468930458,0.58492108,1788.2,1788.1,14.46896025]
[1680468930757,0.58492108,1788.3,1788.1,14.46896025]
[1680468930955,0.58492108,1788.3,1788.2,14.26047327]
[1680468931668,0.58492108,1788.3,1788.2,17.46827327]
[1680468932858,0.58492108,1788.3,1788.2,18.30727327]
[1680468933063,1.15319908,1788.4,1788.2,18.30727327]
[1680468933260,0.58492108,1788.4,1788.3,14.26047327]
[1680468935370,0.58492108,1788.5,1788.3,14.26047327]
[1680468935569,1.17160042,1788.6,1788.5,0.839]
[1680468936771,1.16842087,1789.3,1788.6,1.171]
[1680468936964,1.16842087,1789.5,1789.2,5.7178]
[1680468937167,1.16842087,1789.6,1789.4,3.0537949]
[1680468937871,1.69299284,1789.8,1789.4,3.0537949]
[1680468937872,1.16842087,1789.8,1789.4,3.0537949]
[1680468938069,1.16842087,1789.8,1789.5,0.839]
[1680468938369,1.16842087,1789.8,1789.4,3.0537949]
[1680468938370,1.71407161,1789.9,1789.7,0.839]
[1680468938963,1.77613322,1790.0,1789.7,4.0468]
[1680468938964,2.94455409,1790.0,1789.7,4.0468]
[1680468939163,3.49410504,1790.0,1789.7,4.0468]
[1680468939360,1.81797182,1790.0,1789.9,5.7178]
[1680468939562,0.1,1790.0,1789.9,5.7178]
[1680468939771,0.1,1790.0,1789.9,1.678]
[1680468940670,0.1,1790.0,1789.9,0.839]
[1680468941664,1.1,1790.0,1789.9,0.839]
[1680468941861,1.939,1790.0,1789.5,0.833]
[1680468942065,3.2078,1789.7,1789.6,0.82944236]
[1680468942264,3.2078,1789.7,1789.4,0.832]
[1680468942670,3.2078,1789.7,1789.5,0.82942558]
[1680468946374,1.0,1789.6,1789.5,0.82942558]
[1680468946570,1.835,1789.6,1789.0,0.839]
[1680468946874,4.0418,1789.5,1789.1,0.47091241]
[1680468947175,1.0,1789.4,1789.1,0.47091241]
[1680468947372,4.3248,1789.5,1789.1,0.47091241]
[1680468951775,4.88687247,1789.5,1789.1,0.47091241]
[1680468952081,3.76987247,1789.5,1789.1,1.58791241]
[1680468957482,3.76987247,1789.5,1789.1,0.47091241]
[1680468957483,3.2078,1789.3,1789.1,0.47091241]
[1680468957678,4.3248,1789.3,1789.1,0.47091241]
[1680468957878,4.3248,1789.3,1788.9,3.2078]
[1680468958083,1.0,1789.2,1788.9,3.2078]
[1680468958785,4.3248,1789.3,1788.9,3.2078]
[1680468962575,3.2078,1789.3,1789.0,1.108]
[1680468964390,10.75645763,1789.5,1789.0,1.108]
[1680468964980,5.75645763,1789.5,1789.0,1.108]